fUST/lending_fUST_20251011
["ID","MTS","AMOUNT","RATE_DAILY","PERIOD"]
[390888809,1760195448541,-329.0,0.00026571,3]
[390888810,1760195448550,-329.0,0.00026571,3]
[390888811,1760195448563,-329.0,0.00026571,3]
[390888812,1760195448574,-329.0,0.00026571,3]
[390888813,1760195448583,-329.0,0.00026571,3]
[390888814,1760195448593,-329.0,0.00026571,3]
[390888815,1760195448602,-329.0,0.00026571,3]
[390888816,1760195448611,-329.0,0.00026571,3]
[390888817,1760195448622,-329.0,0.00026571,3]
[390888818,1760195448631,-329.0,0.00026571,3]
[390888819,1760195448640,-329.0,0.00026571,3]
[390888820,1760195448649,-329.0,0.00026571,3]
[390888821,1760195448658,-329.0,0.00026571,3]
[390888822,1760195448667,-329.0,0.00026571,3]
[390888823,1760195448677,-329.0,0.00026571,3]
[390888824,1760195448687,-329.0,0.00026571,3]
[390888825,1760195448696,-329.0,0.00026571,3]
[390888826,1760195448706,-329.0,0.00026571,3]
[390888827,1760195448715,-329.0,0.00026571,3]
[390888828,1760195448724,-334.41020079,0.00026571,3]
[390888829,1760195448733,-2609.37557469,0.00026571,3]
[390888830,1760195448742,-166.0,0.00026571,3]
[390888831,1760195448752,-172.0,0.00026571,3]
[390888832,1760195448761,-500.0,0.00026575,2]
[390888833,1760195448770,-350.872193,0.00026581,2]
[390888834,1760195448780,-666.66666667,0.00026626,12]
[390888835,1760195448789,-666.66666667,0.00026626,12]
[390888836,1760195448798,-666.66666667,0.00026626,12]
[390888837,1760195448807,-666.66666667,0.00026626,12]
[390888838,1760195448816,-432.35946829,0.000267,2]
[390888839,1760195448825,-1058.32870369,0.000267,2]
[390888840,1760195448834,-150.0,0.0002675,2]
[390888841,1760195448844,-364.8538019,0.00026753,2]
[390888842,1760195448853,-666.66666667,0.00026781,14]
[390888843,1760195448862,-666.66666667,0.00026781,14]
[390888844,1760195448872,-500.0,0.00026849,2]
[390888845,1760195448881,-168.14177406,0.00026934,9]
[390888846,1760195448890,-666.66666667,0.00026937,16]
[390888847,1760195448900,-666.66666667,0.00026937,16]
[390888848,1760195448909,-666.66666667,0.00026937,16]
[390888849,1760195448921,-432.35946829,0.00027,2]
[390888850,1760195448931,-1058.32870369,0.00027,2]
[390888851,1760195448941,-1128.18391511,0.00027,2]
[390888852,1760195448950,-2500.0,0.00027064,2]
[390888853,1760195448959,-1005.68056906,0.00027064,2]
[390888854,1760195448970,-2500.0,0.00027064,2]
[390888855,1760195448980,-666.66666667,0.00027092,18]
[390888856,1760195448988,-666.66666667,0.00027092,18]
[390888857,1760195448998,-666.66666667,0.00027092,18]
[390888858,1760195449008,-666.66666667,0.00027092,18]
[390888859,1760195449017,-500.0,0.00027123,2]
[390888860,1760195449026,-342.32571478,0.00027134,2]
[390888861,1760195449036,-1058.32870369,0.000272,2]
[390888862,1760195449046,-666.66666667,0.00027248,20]
[390888863,1760195449055,-250.0,0.00027298,2]
[390888864,1760195449065,-1683.64805288,0.00027313,2]
[390888865,1760195449075,-357.47083217,0.00027397,2]
[390888866,1760195449084,-1442.99,0.00027397,4]
[390888867,1760195449094,-150.0,0.00027397,5]
[390888868,1760195449103,-4208.83,0.000274,2]
[390888869,1760195449112,-8357.96,0.000274,2]
[390888870,1760195449122,-184.87794011,0.00027429,15]
[390888871,1760195449131,-151.26,0.00027429,15]
[390888872,1760195449141,-1058.32870369,0.000275,2]
[390888873,1760195449150,-441.3289675,0.00027529,2]
[390888874,1760195449160,-151.26,0.00027529,15]
[390888875,1760195449169,-3000.0,0.00027612,5]
[390888876,1760195449178,-3000.0,0.00027612,5]
[390888877,1760195449187,-151.26,0.00027629,15]
[390888878,1760195449197,-151.26,0.00027729,15]
[390888879,1760195449207,-371.6679189,0.00027734,2]
[390888880,1760195449216,-677.25,0.00027794,2]
[390888881,1760195449226,-1058.32870369,0.000278,2]
[390888882,1760195449236,-151.26,0.00027829,15]
[390888883,1760195449245,-350.0,0.00027846,5]
[390888884,1760195449254,-1000.0,0.00027853,5]
[390888885,1760195449264,-980.0,0.00027878,2]
[390888886,1760195449273,-2159.0,0.00027878,2]
[390888887,1760195449282,-630.0,0.00027878,2]
[390888888,1760195449292,-4196.0,0.00027903,2]
[390888889,1760195449301,-151.26,0.00027929,15]
[390888890,1760195449310,-250.0,0.00027945,5]
[390888891,1760195449319,-242.66491503,0.00027974,2]
[390888892,1760195449329,-1058.32870369,0.00028,2]
[390888893,1760195449338,-1000.0,0.00028,2]
[390888894,1760195449348,-151.26,0.00028029,15]
[390888895,1760195449357,-151.26,0.00028129,15]
[390888896,1760195449367,-1505.15323595,0.0002816,5]
[390888897,1760195449376,-3500.0,0.0002816,5]
[390888898,1760195449385,-194.0,0.0002821,20]
[390888899,1760195449394,-151.26,0.00028229,15]
[390888900,1760195449403,-1058.32870369,0.000283,2]
[390888901,1760195449413,-151.26,0.00028329,15]
[390888902,1760195449422,-401.01012302,0.00028334,2]
[390888903,1760195449431,-360.0,0.00028373,2]
[390888904,1760195449441,-450.0,0.00028394,5]
[390888905,1760195449450,-151.301461,0.00028429,15]
[390888906,1760195449459,-720.0,0.00028493,30]
[390888907,1760195449468,-350.0,0.00028493,5]
[390888908,1760195449477,-150.0,0.00028496,2]
[390888909,1760195449487,-1654.0,0.00028633,2]
[390888910,1760195449496,-1683.64805288,0.00028691,2]
[390888911,1760195449504,-4000.0,0.00028708,5]
[390888912,1760195449514,-231.36687,0.0002876,120]
[390888913,1760195449524,-1442.99,0.00028767,6]
[390888914,1760195449532,-430.35232715,0.00028934,2]
[390888915,1760195449542,-550.0,0.00028942,5]
[390888916,1760195449551,-151.0,0.0002899,30]
[390888917,1760195449560,-151.0,0.0002899,30]
[390888918,1760195449570,-194330.46486941,0.00029,2]
[390888919,1760195449579,-8000.0,0.00029,30]
[390888920,1760195449589,-1016.76,0.00029,2]
[390888921,1760195449598,-1126.0,0.00029,2]
[390888922,1760195449608,-450.0,0.00029041,5]
[390888923,1760195449621,-500.0,0.0002906,11]
[390888924,1760195449634,-217.5933179,0.00029065,30]
[390888925,1760195449647,-1016.76,0.00029174,2]
[390888926,1760195449661,-8357.96,0.000292,2]
[390888927,1760195449672,-1236.02856033,0.00029244,2]
[390888928,1760195449685,-4500.0,0.00029256,5]
[390888929,1760195449696,-1016.76,0.00029348,2]
[390888930,1760195449706,-2000.0,0.00029348,120]
[390888931,1760195449717,-2000.0,0.00029348,120]
[390888932,1760195449730,-1790.52,0.00029348,120]
[390888933,1760195449741,-158.61640322,0.00029393,2]
[390888934,1760195449752,-500.0,0.00029476,11]
[390888935,1760195449765,-650.0,0.0002949,5]
[390888936,1760195449776,-154.809388,0.000295,10]
[390888937,1760195449788,-4208.83,0.000295,2]
[390888938,1760195449799,-153.0,0.00029511,30]
[390888939,1760195449811,-790.13,0.00029531,2]
[390888940,1760195449823,-459.69453127,0.00029534,2]
[390888941,1760195449834,-550.0,0.00029589,5]
[390888942,1760195449847,-5000.0,0.00029804,5]
[390888943,1760195449858,-151.0,0.00029878,7]
[390888944,1760195449870,-800.0,0.00029939,2]
[390888945,1760195449881,-500.0,0.00029973,5]
[390888946,1760195449893,-222.69375,0.0003,2]
[390888947,1760195449904,-9386.1816,0.0003,10]
[390888948,1760195449915,-1126.0,0.0003,7]
[390888949,1760195449930,-200000.0,0.0003,5]
[390888950,1760195449947,-2609.37557469,0.0003,10]
[390888951,1760195449959,-350.872193,0.00030006,60]
[390888952,1760195449972,-194.0,0.0003001,25]
[390888953,1760195449984,-2603.29,0.00030022,30]
[390888954,1760195449995,-750.0,0.00030038,5]
[390888955,1760195450007,-800.0,0.0003006,2]
[390888956,1760195450017,-1683.64805288,0.00030069,2]
[390888957,1760195450028,-160.54384819,0.000301,120]
[390888958,1760195450040,-150.0,0.000301,10]
[390888959,1760195450051,-154.809388,0.00030123,2]
[390888960,1760195450063,-489.03673539,0.00030134,2]
[390888961,1760195450077,-227.18,0.00030136,120]
[390888962,1760195450088,-1442.99,0.00030136,8]
[390888963,1760195450100,-650.0,0.00030137,5]
[390888964,1760195450112,-56971.81257678,0.00030156,30]
[390888965,1760195450127,-6000.0,0.00030163,60]
[390888966,1760195450139,-872.14,0.00030169,60]
[390888967,1760195450152,-150.0,0.00030178,2]
[390888968,1760195450163,-8667.76722455,0.00030178,2]
[390888969,1760195450176,-3740.28664698,0.00030178,7]
[390888970,1760195450188,-429.16435768,0.00030178,7]
[390888971,1760195450198,-1002.02249188,0.00030178,2]
[390888972,1760195450209,-10467.49218952,0.00030178,2]
[390888973,1760195450218,-365.10385937,0.00030178,2]
[390888974,1760195450228,-8168.08318115,0.00030178,2]
[390888975,1760195450240,-7057.46303279,0.00030178,2]
[390888976,1760195450252,-3801.3156629,0.00030178,35]
[390888977,1760195450265,-105924.44083459,0.00030178,30]
[390888978,1760195450357,-10000.0,0.00030169,2]
[390888979,1760195450369,-10000.0,0.00030169,2]
[390888980,1760195450380,-10000.0,0.00030169,2]
[390888981,1760195450390,-10000.0,0.00030169,2]
[390888982,1760195450400,-10000.0,0.00030169,2]
[390888983,1760195450410,-10000.0,0.00030169,2]
[390888984,1760195450420,-10000.0,0.00030169,2]
[390888985,1760195450431,-10000.0,0.00030169,2]
[390888986,1760195450443,-10000.0,0.00030169,2]
[390888987,1760195450457,-10000.0,0.00030169,2]
[390888988,1760195450468,-10000.0,0.00030169,2]
[390888989,1760195450479,-10000.0,0.00030169,2]
[390888990,1760195450490,-8000.0,0.00030169,2]
[390888991,1760195450502,-500.11743503,0.00030173,5]
[390888992,1760195450513,-500.0,0.00030173,5]
[390888993,1760195450523,-500.0,0.00030173,5]
[390888994,1760195450534,-500.1912246,0.00030173,5]
[390888995,1760195450545,-767561.93896541,0.00030178,30]
[390888996,1760195450555,-3587.999999,0.00030178,7]
[390888997,1760195450566,-3667.81823062,0.00030178,30]
[390888998,1760195450576,-30000.0,0.00030178,30]
[390888999,1760195450587,-105204.60104036,0.00030178,7]
[390889000,1760195450597,-4670.23630384,0.00030178,30]
[390889001,1760195450607,-91379.92878483,0.00030178,2]
[390889002,1760195450618,-225.64669928,0.00030178,15]
[390889003,1760195450628,-300.0,0.00030178,2]
[390889004,1760195450639,-3886.18743866,0.00030178,2]
[390889005,1760195450650,-810.81339319,0.00030178,2]
[390889006,1760195450661,-258.55525668,0.00030178,2]
[390889007,1760195450670,-240.4597466,0.00030178,10]
[390889008,1760195450680,-297.28479008,0.00030178,2]
[390889009,1760195450689,-50010.84860944,0.00030178,5]
[390889010,1760195450698,-327.45706987,0.00030178,2]
[390889011,1760195450707,-292.24761959,0.00030178,2]
[390889012,1760195450717,-194.87567149,0.00030178,12]
[390889013,1760195450726,-638.11049295,0.00030178,2]
[390889014,1760195450735,-1363.69842866,0.00030178,2]
[390889015,1760195450744,-156.83351984,0.00030178,2]
[390889016,1760195450754,-6301.29202423,0.00030178,2]
[390889017,1760195450764,-157.83419757,0.00030178,2]
[390889018,1760195450773,-1095.84666558,0.00030178,10]
[390889019,1760195450783,-1719.20816001,0.00030178,2]
[390889020,1760195450793,-2078.97304031,0.00030178,2]
[390889021,1760195450802,-1500.0,0.00030178,3]
[390889022,1760195450812,-200.0,0.00030178,10]
[390889023,1760195450821,-508.24618066,0.00030178,2]
[390889024,1760195450831,-10590.79276867,0.00030178,7]
[390889025,1760195450841,-468.46283752,0.00030178,2]
[390889026,1760195450850,-179.53231605,0.00030178,2]
[390889027,1760195450859,-498.0,0.00030178,7]
[390889028,1760195450872,-909.9648072,0.00030178,14]
[390889029,1760195450882,-30482.30003228,0.00030178,2]
[390889030,1760195450891,-189.41571748,0.00030178,2]
[390889031,1760195450900,-1398.74796368,0.00030178,2]
[390889032,1760195450910,-5903.3103795,0.00030178,2]
[390889033,1760195450921,-10694.86721083,0.00030178,2]
[390889034,1760195450933,-652.03904262,0.00030178,2]
[390889035,1760195450943,-1541.04435632,0.00030178,14]
[390889036,1760195450952,-2920.0,0.00030178,2]
[390889037,1760195450963,-154.3487781,0.00030178,7]
[390889038,1760195450972,-813.13950623,0.00030178,15]
[390889039,1760195450982,-5559.30791746,0.00030178,30]
[390889040,1760195450991,-385.35044903,0.00030178,2]
[390889041,1760195451003,-1444.53304621,0.00030178,2]
[390889042,1760195451015,-201.60726783,0.00030178,2]
[390889043,1760195451024,-1521.08806413,0.00030178,15]
[390889044,1760195451034,-3151.02793611,0.00030178,2]
[390889045,1760195451044,-166.78596952,0.00030178,2]
[390889046,1760195451055,-2516.98535222,0.00030178,7]
[390889047,1760195451064,-100370.42113177,0.00030178,2]
[390889048,1760195451234,-150.53534174,0.00030178,2]
[390889049,1760195451251,-258.87111469,0.00030178,2]
[390889050,1760195451261,-176.51046614,0.00030178,7]
[390889051,1760195451271,-3770.52951071,0.00030178,2]
[390889052,1760195451280,-158.0,0.00030178,10]
[390889053,1760195451290,-500.0,0.00030178,10]
[390889054,1760195451299,-500.0,0.00030178,10]
[390889055,1760195451308,-500.0,0.00030178,10]
[390889056,1760195451317,-500.0,0.00030178,10]
[390889057,1760195451327,-310.63948797,0.00030178,10]
[390889058,1760195451336,-500.0,0.00030178,10]
[390889059,1760195451345,-250.0,0.00030178,10]
[390889060,1760195451354,-250.0,0.00030178,10]
[390889061,1760195451363,-250.0,0.00030178,10]
[390889062,1760195451373,-152.19818,0.000302,30]
[390889063,1760195451383,-154.809388,0.000302,30]
[390889064,1760195451392,-154.809388,0.000302,30]
[390889065,1760195451402,-227.18,0.00030273,120]
[390889066,1760195451411,-160.0,0.00030287,3]
[390889067,1760195451420,-160.0,0.00030287,5]
[390889068,1760195451429,-152.19818,0.00030312,10]
[390889069,1760195451438,-154.809388,0.00030312,10]
[390889070,1760195451447,-154.809388,0.00030312,10]
[390889071,1760195451456,-152.198179,0.00030312,10]
[390889072,1760195451465,-154.809388,0.00030312,10]
[390889073,1760195451475,-500.0,0.00030324,5]
[390889074,1760195451484,-2614.18018967,0.00030324,60]
[390889075,1760195451498,-500.0,0.00030324,2]
[390889076,1760195451507,-455.55,0.00030324,2]
[390889077,1760195451516,-49319.36408,0.00030331,60]
[390889078,1760195451526,-6581.8,0.00030337,60]
[390889079,1760195451535,-184.7425596,0.0003034,2]
[390889080,1760195451545,-5500.0,0.00030352,5]
[390889081,1760195451555,-169.0,0.0003038,120]
[390889082,1760195451564,-200.0,0.00030406,120]
[390889083,1760195451574,-227.18,0.0003041,120]
[390889084,1760195451583,-200.0,0.00030484,120]
[390889085,1760195451592,-49319.36408,0.00030484,60]
[390889086,1760195451602,-6581.8,0.00030496,60]
[390889087,1760195451611,-423.08707,0.000305,120]
[390889088,1760195451621,-269.26121,0.000305,120]
[390889089,1760195451630,-200.0,0.000305,120]
[390889090,1760195451639,-200.0,0.000305,120]
[390889091,1760195451649,-1000.0,0.00030521,5]
[390889092,1760195451658,-227.18,0.00030547,120]
[390889093,1760195451668,-150.0,0.00030564,7]
[390889094,1760195451677,-155.95,0.00030575,15]
[390889095,1760195451686,-154.79,0.00030585,15]
[390889096,1760195451695,-850.0,0.00030586,5]
[390889097,1760195451704,-154.82,0.00030593,15]
[390889098,1760195451713,-200.0,0.000306,120]
[390889099,1760195451722,-709.81176,0.000306,120]
[390889100,1760195451732,-203.42146,0.000306,120]
[390889101,1760195451742,-152.0,0.000306,120]
[390889102,1760195451751,-200.0,0.00030601,120]
[390889103,1760195451760,-412.93874,0.00030609,60]
[390889104,1760195451770,-154.8,0.00030624,15]
[390889105,1760195451779,-154.8,0.00030636,15]
[390889106,1760195451788,-49319.36408,0.00030638,60]
[390889107,1760195451797,-6581.8,0.00030655,60]
[390889108,1760195451807,-155.95,0.00030675,15]
[390889109,1760195451816,-227.18,0.00030684,120]
[390889110,1760195451826,-787.75,0.00030684,14]
[390889111,1760195451835,-470.11389129,0.00030685,5]
[390889112,1760195451845,-154.79,0.00030685,15]
[390889113,1760195451855,-154.84483919,0.00030693,15]
[390889114,1760195451864,-8357.96,0.000307,2]
[390889115,1760195451875,-500.0,0.00030721,5]
[390889116,1760195451884,-500.0,0.00030721,5]
[390889117,1760195451894,-154.81,0.00030724,15]
[390889118,1760195451903,-518.37893952,0.00030734,2]
[390889119,1760195451912,-154.81,0.00030736,15]
[390889120,1760195451923,-170.6507,0.00030768,60]
[390889121,1760195451936,-162.41701,0.00030771,60]
[390889122,1760195451945,-155.95,0.00030775,15]
[390889123,1760195451955,-174.86436,0.00030776,60]
[390889124,1760195451964,-154.79,0.00030785,15]
[390889125,1760195451974,-216.07561,0.00030787,60]
[390889126,1760195451984,-56399.14783763,0.0003079,30]
[390889127,1760195451993,-49319.36408,0.00030791,60]
[390889128,1760195452003,-216.17377,0.00030792,60]
[390889129,1760195452014,-200.0,0.00030795,120]
[390889130,1760195452023,-6581.8,0.00030814,60]
[390889131,1760195452032,-233.49757,0.00030815,60]
[390889132,1760195452044,-227.18,0.00030821,120]
[390889133,1760195452064,-238.75022,0.0003084,60]
[390889134,1760195452083,-200.0,0.00030841,120]
[390889135,1760195452093,-242.75484,0.00030842,60]
[390889136,1760195452104,-229.56166,0.00030844,60]
[390889137,1760195452114,-243.7944,0.00030846,60]
[390889138,1760195452125,-161.30808,0.00030868,60]
[390889139,1760195452136,-242.25888,0.00030869,60]
[390889140,1760195452146,-161.30808,0.00030872,60]
[390889141,1760195452155,-2573.0,0.00030875,60]
[390889142,1760195452166,-155.97519405,0.00030875,15]
[390889143,1760195452176,-980.0,0.00030878,2]
[390889144,1760195452186,-2159.0,0.00030878,2]
[390889145,1760195452196,-630.0,0.00030878,2]
[390889146,1760195452206,-654.73655709,0.00030881,60]
[390889147,1760195452216,-200.0,0.00030896,120]
[390889148,1760195452227,-234.32063665,0.000309,10]
[390889149,1760195452236,-5013.85770469,0.000309,5]
[390889150,1760195452246,-227.18,0.00030958,120]
[390889151,1760195452256,-200.0,0.00030971,120]
[390889152,1760195452265,-150.0,0.00030973,5]
[390889153,1760195452274,-200.0,0.00030975,120]
[390889154,1760195452283,-200.0,0.0003098,120]
[390889155,1760195452292,-200.0,0.00030987,120]
[390889156,1760195452302,-303.27579519,0.0003099,2]
[390889157,1760195452311,-927.44,0.00031,120]
[390889158,1760195452321,-800.0,0.00031,120]
[390889159,1760195452330,-10000.0,0.00031,120]
[390889160,1760195452339,-500.0,0.00031,120]
[390889161,1760195452349,-4306.4126627,0.00031,120]
[390889162,1760195452358,-542416.5536,0.00031,60]
[390889163,1760195452368,-402592.9538,0.00031,60]
[390889164,1760195452377,-1000.0,0.00031,120]
[390889165,1760195452387,-2609.37557469,0.00031,120]
[390889166,1760195452396,-2609.37557469,0.00031,30]
[390889167,1760195452405,-2609.37557469,0.00031,7]
[390889168,1760195452415,-200.0,0.00031003,120]
[390889169,1760195452424,-200.0,0.00031033,120]
[390889170,1760195452433,-412.93874,0.0003104,60]
[390889171,1760195452442,-200.0,0.0003106,120]
[390889172,1760195452451,-802.73273547,0.00031068,5]
[390889173,1760195452461,-200.0,0.00031079,120]
[390889174,1760195452470,-227.18,0.00031095,120]
[390889175,1760195452479,-4208.83,0.000311,2]
[390889176,1760195452488,-2609.37557469,0.000311,30]
[390889177,1760195452498,-10000.0,0.0003112,2]
[390889178,1760195452507,-950.0,0.00031134,5]
[390889179,1760195452517,-100000.0,0.00031178,120]
[390889180,1760195452526,-100000.0,0.00031178,120]
[390889181,1760195452535,-110393.0,0.00031178,120]
[390889182,1760195452545,-51808.21637381,0.00031178,30]
[390889183,1760195452554,-267.0,0.00031178,25]
[390889184,1760195452563,-423.08707,0.000312,120]
[390889185,1760195452572,-200.0,0.000312,120]
[390889186,1760195452582,-200.0,0.000312,120]
[390889187,1760195452591,-200.0,0.000312,120]
[390889188,1760195452600,-227.18,0.00031232,120]
[390889189,1760195452609,-787.75,0.00031232,15]
[390889190,1760195452619,-152.19818,0.00031265,2]
[390889191,1760195452629,-154.809388,0.00031265,2]
[390889192,1760195452638,-154.809388,0.00031265,2]
[390889193,1760195452649,-152.198179,0.00031265,2]
[390889194,1760195452658,-154.809388,0.00031265,2]
[390889195,1760195452667,-903.0,0.00031269,2]
[390889196,1760195452677,-200.0,0.00031273,120]
[390889197,1760195452686,-547.72114364,0.00031334,2]
[390889198,1760195452695,-864.0,0.00031343,30]
[390889199,1760195452705,-200.0,0.00031357,120]
[390889200,1760195452715,-227.18,0.00031369,120]
[390889201,1760195452723,-300.0,0.000314,120]
[390889202,1760195452732,-1122.0,0.00031431,28]
[390889203,1760195452741,-200.0,0.00031438,120]
[390889204,1760195452751,-4794.53159853,0.00031444,2]
[390889205,1760195452764,-2268.35815529,0.00031444,2]
[390889206,1760195452775,-27268.28644943,0.00031444,2]
[390889207,1760195452786,-578.318515,0.00031444,2]
[390889208,1760195453354,-3e-08,0.00024657,9]
[390889209,1760195453366,-358.52576743,0.00024657,9]
[390889210,1760195453528,-141.47423254,0.00024657,9]
[390889211,1760195453537,-151.0,0.00024657,7]
[390889212,1760195453547,-500.0,0.00024657,9]
[390889213,1760195453556,-500.0,0.00024657,9]
[390889214,1760195453566,-151.0,0.00024657,7]
[390889215,1760195453575,-500.0,0.00024657,9]
[390889216,1760195453585,-500.0,0.00024657,9]
[390889217,1760195453594,-500.0,0.00024657,9]
[390889218,1760195453604,-287.777026,0.00024657,7]
[390889219,1760195453614,-500.0,0.00024657,9]
[390889220,1760195453624,-500.0,0.00024657,9]
[390889221,1760195453634,-500.0,0.00024657,9]
[390889222,1760195453643,-500.0,0.00024657,9]
[390889223,1760195453653,-500.0,0.00024657,9]
[390889224,1760195453662,-500.0,0.00024657,9]
[390889225,1760195453671,-500.0,0.00024657,9]
[390889226,1760195453681,-500.0,0.00024657,9]
[390889227,1760195453690,-500.0,0.00024657,9]
[390889228,1760195453699,-500.0,0.00024657,9]
[390889229,1760195453708,-500.0,0.00024657,9]
[390889230,1760195453718,-475.09313333,0.00024657,9]
[390889231,1760195453802,245.1,0.00024134,2]
[390889232,1760195453900,-1125.72127738,0.00024437,2]
[390889233,1760195453911,-647.23190634,0.00024437,2]
[390889234,1760195453923,-3784.2768402,0.00024437,2]
[390889235,1760195453936,-24.90686667,0.00024657,9]
[390889236,1760195453946,-500.0,0.00024657,9]
[390889237,1760195453955,-500.0,0.00024657,9]
[390889238,1760195453966,-500.0,0.00024657,9]
[390889239,1760195453975,-500.0,0.00024657,9]
[390889240,1760195453984,-500.0,0.00024657,9]
[390889241,1760195453993,-223.83,0.00024657,9]
[390889242,1760195454003,-500.0,0.00024657,9]
[390889243,1760195454012,-500.0,0.00024657,9]
[390889244,1760195454021,-500.0,0.00024657,9]
[390889245,1760195454031,-500.0,0.00024657,9]
[390889246,1760195454039,-500.0,0.00024657,9]
[390889247,1760195454048,-500.0,0.00024657,9]
[390889248,1760195454058,-500.0,0.00024657,9]
[390889249,1760195454067,-500.0,0.00024657,9]
[390889250,1760195454076,-500.0,0.00024657,9]
[390889251,1760195454085,-500.0,0.00024657,9]
[390889252,1760195454095,-500.0,0.00024657,9]
[390889253,1760195454103,-500.0,0.00024657,9]
[390889254,1760195454113,-500.0,0.00024657,9]
[390889255,1760195454123,-500.0,0.00024657,9]
[390889256,1760195454133,-500.0,0.00024657,9]
[390889257,1760195454142,-500.0,0.00024657,9]
[390889258,1760195454151,-500.0,0.00024657,9]
[390889259,1760195454161,-500.0,0.00024657,9]
[390889260,1760195454170,-500.0,0.00024657,9]
[390889261,1760195454179,-5557.23002392,0.00024831,2]
[390889262,1760195454188,-202.08639383,0.00024885,2]
[390889263,1760195454197,-484.44499572,0.00024885,2]
[390889264,1760195454206,-361422.75379266,0.00031444,2]
[390889265,1760195454217,-247690.613,0.00031444,2]
[390889266,1760195457767,150.0,0.00018837,2]
[390889267,1760195458206,150.0,0.00020549,2]
[390889268,1760195458706,216.53,0.00022261,2]
[390889269,1760195459122,288.71,0.00023974,2]
[390889270,1760195490112,368.91928425,0.00023604,2]
[390889271,1760195490143,-500.0,0.00024657,9]
[390889272,1760195490165,-500.0,0.00024657,9]
[390889273,1760195490185,-500.0,0.00024657,9]
[390889274,1760195490205,-500.0,0.00024657,9]
[390889275,1760195490225,-500.0,0.00024657,9]
[390889276,1760195490246,-500.0,0.00024657,9]
[390889277,1760195490274,-500.0,0.00024657,9]
[390889278,1760195490302,-500.0,0.00024657,9]
[390889279,1760195490322,-500.0,0.00024657,9]
[390889280,1760195490346,-508.86,0.00024657,9]
[390889281,1760195490366,-500.0,0.00024657,9]
[390889282,1760195490388,-500.0,0.00024657,9]
[390889283,1760195490410,-508.86,0.00024657,9]
[390889284,1760195490433,-500.0,0.00024657,9]
[390889285,1760195490455,-203.49462558,0.00024657,9]
[390889286,1760195490477,-508.86,0.00024657,9]
[390889287,1760195490497,-500.0,0.00024657,9]
[390889288,1760195490518,-500.0,0.00024657,9]
[390889289,1760195490539,-508.86,0.00024657,9]
[390889290,1760195490560,-500.0,0.00024657,9]
[390889291,1760195490581,-500.0,0.00024657,9]
[390889292,1760195490603,-508.86,0.00024657,9]
[390889293,1760195490623,-570.55,0.00024657,9]
[390889294,1760195490646,-249.08,0.00024657,9]
[390889295,1760195490668,-508.86,0.00024657,9]
[390889296,1760195490690,-508.86,0.00024657,9]
[390889297,1760195490727,-500.0,0.00024657,9]
[390889298,1760195490752,-508.86,0.00024657,9]
[390889299,1760195490775,-500.0,0.00024657,9]
[390889300,1760195490796,-508.86,0.00024657,9]
[390889301,1760195490820,-500.0,0.00024657,9]
[390889302,1760195490846,-500.0,0.00024657,9]
[390889303,1760195490868,-508.86,0.00024657,9]
[390889304,1760195490889,-500.0,0.00024657,9]
[390889305,1760195490912,-500.0,0.00024657,9]
[390889306,1760195490938,-508.86,0.00024657,9]
[390889307,1760195490961,-541.18070524,0.00024657,9]
[390889308,1760195490984,-500.0,0.00024657,9]